bitfinex/quotes_SOLUSD_20250416
["timestamp","ask_amount","ask_price","bid_price","bid_amount"]
[1744831422594,27.40857253,129.39,129.38,0.063]
[1744831422788,27.40857253,129.39,129.34,0.063]
[1744831422789,6.5904,129.35,129.34,0.063]
[1744831422998,25.66653357,129.35,129.34,0.063]
[1744831423164,77.78677939,129.35,129.34,0.063]
[1744831423364,77.78677939,129.35,129.34,1e-08]
[1744831423611,0.28432314,129.3,129.27,0.03]
[1744831423779,19.7,129.3,129.27,52.15024582]
[1744831424592,8.73857452,129.34,129.29,52.12024582]
[1744831424786,8.73857452,129.34,129.3,52.12024582]
[1744831425263,52.12024582,129.33,129.29,52.12024582]
[1744831425469,0.28432314,129.32,129.28,52.12024582]
[1744831425986,52.12024582,129.31,129.27,0.03]
[1744831426189,52.12024582,129.3,129.27,0.03]
[1744831426388,0.28432314,129.3,129.27,0.03]
[1744831426571,8.01876361,129.3,129.27,0.03]
[1744831427065,27.43355159,129.31,129.28,52.12024582]
[1744831427484,27.43355159,129.31,129.27,52.15024582]
[1744831429271,61.88595825,129.31,129.27,0.03]
[1744831429699,34.45240666,129.29,129.27,0.03]
[1744831430291,82.8,129.29,129.27,0.03]
[1744831430600,7.73514851,129.28,129.27,0.03]
[1744831430986,90.53477895,129.29,129.27,0.03]
[1744831431500,117.25240666,129.28,129.27,0.03]
[1744831431680,82.8,129.28,129.27,0.03]
[1744831432078,117.5367298,129.28,129.27,0.03]
[1744831432605,90.53543885,129.28,129.24,34.45240666]
[1744831432913,124.98784551,129.28,129.24,34.45240666]
[1744831433583,90.53543885,129.28,129.24,34.45240666]
[1744831434207,124.98784551,129.28,129.24,34.45240666]
[1744831434513,124.98784551,129.28,129.23,34.45240666]
[1744831435603,90.53543885,129.28,129.23,34.45240666]
[1744831435784,90.53543885,129.28,129.25,34.45240666]
[1744831435989,82.8,129.28,129.26,34.45240666]
[1744831436189,90.5352075,129.28,129.26,34.45240666]
[1744831436498,82.8,129.28,129.26,34.45240666]
[1744831438493,102.52,129.31,129.27,34.45240666]
[1744831438692,102.52,129.31,129.3,34.45240666]
[1744831438693,19.72,129.31,129.3,34.45240666]
[1744831439018,90.5324173,129.33,129.3,34.45240666]
[1744831439201,90.5324173,129.33,129.31,34.45240666]
[1744831440023,90.5324173,129.33,129.3,34.45240666]
[1744831441106,124.98482396,129.33,129.29,34.45240666]
[1744831441309,90.5324173,129.33,129.29,34.45240666]
[1744831441817,94.90481332,129.3,129.22,0.03]
[1744831442022,34.45240666,129.24,129.22,0.03]
[1744831442239,34.45240666,129.23,129.22,0.03]
[1744831442424,62.19487109,129.23,129.22,0.03]
[1744831442600,80.98668152,129.23,129.22,0.03]
[1744831444930,0.28432314,129.22,129.2,0.03]
[1744831445107,53.24421709,129.21,129.2,0.03]
[1744831445707,27.45814129,129.23,129.2,0.03]
[1744831445902,34.45240666,129.22,129.2,0.03]
[1744831446113,34.7367298,129.21,129.2,0.03]
[1744831446614,42.47606886,129.21,129.2,0.03]
[1744831447410,61.26787929,129.21,129.2,0.03]
[1744831447605,0.28432314,129.19,129.16,0.03]
[1744831447833,34.45240666,129.18,129.16,0.03]
[1744831448202,34.7367298,129.17,129.16,0.03]
[1744831448501,34.7367298,129.17,129.15,0.03]
[1744831448502,26.67630708,129.16,129.15,0.03]
[1744831449130,61.12871374,129.16,129.15,0.03]
[1744831449434,42.33690331,129.16,129.15,0.03]
[1744831449640,42.47906488,129.16,129.15,0.03]
[1744831451230,61.27087531,129.16,129.15,0.03]
[1744831451604,7.74193373,129.17,129.15,0.03]
[1744831451924,34.45240666,129.16,129.15,0.03]
[1744831452128,34.7367298,129.16,129.15,0.03]
[1744831452328,53.52854023,129.16,129.15,0.03]
[1744831452837,53.52854023,129.15,129.14,0.03]
[1744831453319,53.52854023,129.15,129.13,1e-08]
[1744831453320,25.45303357,129.14,129.13,1e-08]
[1744831453510,59.90544023,129.14,129.13,1e-08]
[1744831453823,94.35784689,129.14,129.13,1e-08]
[1744831454214,0.28432314,129.12,129.09,0.03]
[1744831454536,53.52854023,129.1,129.09,0.03]
[1744831455311,61.27447361,129.1,129.09,0.03]
[1744831455637,8.03025652,129.1,129.09,0.03]
[1744831455930,42.48266318,129.1,129.09,0.03]
[1744831456313,61.27447361,129.1,129.09,0.03]
[1744831456515,26.82206695,129.1,129.09,0.03]
[1744831456708,61.27447361,129.1,129.09,0.03]
[1744831458132,61.27447361,129.1,129.02,0.03]
[1744831458133,0.28432314,129.09,129.02,0.03]
[1744831458322,34.45240666,129.06,129.02,0.03]
[1744831458535,34.45240666,129.04,129.02,0.03]
[1744831458709,53.38637866,129.03,129.02,0.03]
[1744831458914,53.52854023,129.03,129.02,0.03]
[1744831459528,61.27867585,129.03,129.02,0.03]
[1744831460546,61.27867585,129.03,129.02,1e-08]
[1744831461050,62.93977585,129.03,129.02,1e-08]
[1744831461253,34.45240666,128.96,128.91,1.5034]
[1744831461423,34.45240666,128.94,128.9,34.45240666]
[1744831461619,34.45240666,128.93,128.88,34.45240666]
[1744831461840,34.45240666,128.93,128.86,10.45959577]
[1744831461841,34.45240666,128.89,128.86,2.6994028]
[1744831462024,19.7,128.89,128.86,2.6994028]
[1744831462215,53.38637866,128.9,128.86,2.6994028]
[1744831462423,34.45240666,128.88,128.86,2.6994028]
[1744831462824,53.38637866,128.87,128.86,2.6994028]
[1744831463357,79.52854023,128.87,128.86,1e-08]
[1744831463676,107.00829812,128.87,128.86,1e-08]
[1744831463855,81.00829812,128.87,128.86,1e-08]
[1744831464257,18.933972,128.87,128.86,1e-08]
[1744831464552,241.72,128.91,128.86,34.45240667]
[1744831464867,19.72,128.93,128.9,34.45240666]
[1744831465028,19.72,128.93,128.91,34.45240666]
[1744831465222,324.52,128.99,128.92,34.45240666]
[1744831465422,34.45240666,128.95,128.89,26.0]
[1744831465653,18.64964886,128.95,128.91,34.45240666]
[1744831465954,34.45240666,128.93,128.86,7.76036009]
[1744831466243,34.45240666,128.94,128.89,34.45240666]
[1744831466938,34.45240666,128.93,128.89,34.45240666]
[1744831467244,19.72,128.95,128.88,7.75911012]
[1744831467472,19.72,128.95,128.91,34.45240666]
[1744831467670,358.97240666,128.99,128.9,26.0]
[1744831467843,34.45240666,128.97,128.92,34.45240666]
[1744831468046,34.45240666,128.97,128.93,34.45240666]
[1744831468253,34.45240666,128.97,128.92,34.45240666]
[1744831468467,53.10205552,128.98,128.93,34.45240666]
[1744831468653,18.64964886,128.98,128.94,34.45240666]
[1744831468971,249.47273446,128.99,128.94,34.45240666]
[1744831469267,249.47273446,128.99,128.92,7.75668383]
[1744831469268,249.47260806,128.99,128.95,34.45240666]
[1744831469461,34.45240666,128.97,128.93,34.45240666]
[1744831470047,34.45240666,128.94,128.84,21.04162321]
[1744831470249,72.82205552,128.95,128.9,34.45240666]
[1744831470550,19.72,128.95,128.94,34.45240666]
[1744831470752,38.36964886,128.98,128.9,26.0]
[1744831470957,80.57574212,128.98,128.93,34.45240666]
[1744831471276,34.7367298,128.97,128.92,34.45240666]
[1744831471577,34.45240666,128.96,128.91,34.45240666]
[1744831471870,19.72,128.98,128.95,34.45240666]
[1744831472076,61.92560674,128.98,128.91,26.0]
[1744831472366,61.92560674,128.98,128.94,34.45240666]
[1744831472563,27.47320008,128.98,128.94,34.45240666]
[1744831472948,19.72,128.98,128.95,34.45240666]
[1744831473249,19.72,128.98,128.96,34.45240666]
[1744831473439,19.72,129.01,128.97,34.45240666]
[1744831473639,19.72,129.01,128.99,34.45240666]
[1744831473846,19.72,129.01,128.98,34.45240666]
[1744831474139,53.10205552,129.0,128.94,26.0]
[1744831474541,34.45240666,128.99,128.94,26.0]
[1744831474776,34.45240666,128.97,128.92,34.45240666]
[1744831474957,34.45240666,128.95,128.91,34.45240666]
[1744831475157,34.45240666,128.95,128.9,34.45240666]
[1744831475467,34.45240666,128.94,128.89,34.45240666]
[1744831475856,34.45240666,128.93,128.89,34.45240666]
[1744831476059,34.45240666,128.93,128.86,1e-08]
[1744831476242,34.45240666,128.89,128.86,1e-08]
[1744831476447,34.45240666,128.88,128.86,1e-08]
[1744831476659,34.45240666,128.89,128.86,1e-08]
[1744831476862,53.24421709,128.9,128.86,1e-08]
[1744831477047,34.45240666,128.89,128.86,1e-08]
[1744831477247,61.00254491,128.9,128.86,1e-08]
[1744831477659,62.07213833,128.91,128.86,34.45240667]
[1744831477843,34.45240666,128.9,128.86,34.45240667]
[1744831478145,34.45240666,128.9,128.86,1e-08]
[1744831478146,34.59456823,128.9,128.86,1e-08]
[1744831478340,34.7367298,128.9,128.86,1e-08]
[1744831478967,42.49504624,128.9,128.86,1e-08]
[1744831479162,34.45240666,128.9,128.86,34.45240667]
[1744831479370,19.72,128.91,128.88,34.45240666]
[1744831479567,19.72,128.91,128.88,26.0]
[1744831479776,19.72,128.91,128.89,34.45240666]
[1744831480073,19.72,128.91,128.88,60.45240666]
[1744831480245,19.72,128.91,128.87,34.45240666]
[1744831480447,18.64964886,128.95,128.89,34.45240666]
[1744831480649,34.45240666,128.93,128.89,34.45240666]
[1744831480977,42.20914641,128.93,128.88,34.45240666]
[1744831481181,53.38637866,128.92,128.87,34.45240666]
[1744831481359,18.933972,128.92,128.88,34.45240666]
[1744831482181,18.933972,128.92,128.86,7.76036009]
[1744831482367,34.45240666,128.9,128.86,34.45240667]
[1744831482574,26.69074719,128.92,128.86,34.45240667]
[1744831482575,34.45240666,128.91,128.86,34.45240667]
[1744831482774,0.28432314,128.88,128.86,1e-08]
[1744831482955,54.4367298,128.88,128.86,1e-08]
[1744831483161,34.45240666,128.87,128.86,1e-08]
[1744831484070,54.4367298,128.88,128.86,1e-08]
[1744831484274,19.7,128.88,128.86,34.45240667]
[1744831484659,61.14423383,128.91,128.86,34.45240667]
[1744831484660,19.3888236,128.95,128.87,34.45240666]
[1744831484877,19.7,128.92,128.88,34.45240666]
[1744831485272,54.15240666,128.92,128.87,34.45240666]
[1744831485581,19.7,128.92,128.88,34.45240666]
[1744831485777,61.90939351,128.92,128.86,7.75978003]
[1744831485959,61.90939351,128.92,128.87,34.45240666]
[1744831486282,27.45698685,128.92,128.86,7.75978003]
[1744831486485,27.45698685,128.92,128.86,1e-08]
[1744831486673,19.7,128.92,128.89,34.45240666]
[1744831486866,54.15240666,128.92,128.86,7.76034037]
[1744831487066,34.45240666,128.91,128.86,7.76034037]
[1744831487269,19.7,128.92,128.87,34.45240666]
[1744831487471,54.15240666,128.92,128.88,34.45240666]
[1744831487671,61.90930857,128.92,128.87,34.45240666]
[1744831487879,61.90930857,128.92,128.87,42.21210964]
[1744831488079,34.45240666,128.91,128.87,7.75970298]
[1744831488280,34.45240666,128.88,128.86,1e-08]
[1744831488475,18.933972,128.9,128.86,34.45240667]
[1744831489164,34.45240666,128.91,128.86,42.21246218]
[1744831489369,53.38637866,128.91,128.87,34.45240666]
[1744831489567,18.933972,128.91,128.87,34.45240666]
[1744831489784,19.7,128.95,128.9,42.21000683]
[1744831489964,54.15240666,128.95,128.91,34.45240666]
[1744831490165,54.15240666,128.95,128.9,42.21000683]
[1744831490567,19.7,128.95,128.93,34.45240666]
[1744831490984,19.7,128.95,128.91,26.0]
[1744831491286,19.7,128.95,128.91,60.45240666]
[1744831491489,19.7,128.95,128.92,34.45240666]
[1744831492190,19.7,128.95,128.87,1.5014]
[1744831492191,53.24421709,128.94,128.87,1.5014]
[1744831492369,0.14216157,128.94,128.86,6.49130001]
[1744831492563,18.933972,128.94,128.89,34.45240666]
[1744831492766,53.38637866,128.94,128.89,34.45240666]
[1744831493168,61.90746744,128.95,128.89,26.0]
[1744831493370,34.45240666,128.94,128.89,60.45240666]
[1744831493571,34.45240666,128.92,128.87,7.75975789]
[1744831493779,0.28432314,128.93,128.87,7.75975789]
[1744831493780,34.7367298,128.93,128.88,34.45240666]
[1744831493989,42.49291737,128.93,128.89,34.45240666]
[1744831494191,42.49291737,128.93,128.88,7.75885211]
[1744831494387,42.49291737,128.93,128.89,34.45240666]
[1744831494581,42.49291737,128.93,128.88,42.21125877]
[1744831495287,8.04051071,128.93,128.88,34.45240666]
[1744831495487,54.15240666,128.95,128.9,34.45240666]
[1744831495789,19.7,128.99,128.94,34.45240666]
[1744831495991,19.7,128.99,128.96,34.45240666]
[1744831496690,90.61261334,129.04,128.95,26.0]
[1744831496994,125.06502,129.04,129.0,34.45240666]
[1744831497201,26.54211518,129.03,128.98,7.75314002]
[1744831497494,26.54211518,129.03,128.99,34.45240666]
[1744831498075,0.063,129.04,129.02,34.45240666]
[1744831498705,0.063,129.04,129.03,34.45240666]
[1744831499078,0.063,129.04,128.98,7.75314002]
[1744831499279,34.45240666,129.03,128.98,60.45240666]
[1744831500387,0.063,129.04,129.01,34.45240666]
[1744831501375,0.063,129.04,129.02,34.45240666]
[1744831501577,0.063,129.04,128.99,7.75253895]
[1744831501791,0.063,129.04,129.0,34.45240666]
[1744831501999,0.063,129.04,128.99,7.75253895]
[1744831502300,0.063,129.04,129.01,34.45240666]
[1744831502695,0.063,129.04,128.98,26.0]
[1744831502696,34.45240666,129.02,128.98,26.0]
[1744831503001,34.45240666,128.99,128.95,34.45240666]
[1744831503189,42.20526971,128.99,128.94,26.0]
[1744831503382,7.75286305,128.99,128.95,34.45240666]
[1744831503579,42.20456959,129.0,128.95,34.45240666]
[1744831503901,42.20456959,129.0,128.93,7.75614674]
[1744831503902,34.45240666,128.99,128.93,7.75614674]
[1744831504120,34.45240666,128.98,128.92,7.75651044]
[1744831504312,34.45240666,128.95,128.88,15.41828666]
[1744831504479,34.45240666,128.92,128.87,34.45240666]
[1744831504681,18.933972,128.94,128.86,7.76011621]
[1744831504890,53.38637866,128.94,128.89,34.45240666]
[1744831505094,82.8,128.95,128.92,34.45240666]
[1744831505287,90.55527022,128.95,128.91,60.45240666]
[1744831505491,90.55527022,128.95,128.89,26.0]
[1744831505690,90.55527022,128.95,128.91,34.45240666]
[1744831505904,82.8,128.98,128.94,34.45240666]
[1744831506100,0.063,129.04,128.98,26.0]
[1744831506401,0.063,129.04,129.02,34.45240666]
[1744831506901,0.063,129.04,129.03,34.45240666]
[1744831507279,0.063,129.04,129.03,52.44630305]
[1744831507911,0.063,129.04,129.02,26.0]
[1744831508203,0.063,129.04,129.03,52.44630305]
[1744831509692,0.063,129.04,129.03,105.03476767]
[1744831510400,0.063,129.04,129.03,52.44630305]
[1744831510605,0.063,129.04,129.03,52.58846462]
[1744831510782,0.063,129.04,129.03,105.03476767]
[1744831511105,0.063,129.04,129.03,52.58846462]
[1744831511400,0.063,129.04,129.03,78.44630305]
[1744831512109,0.063,129.04,129.03,52.58846462]
[1744831512687,0.063,129.04,129.01,20.66]
[1744831512896,0.063,129.04,129.03,78.44630305]
[1744831515186,0.063,129.04,129.03,26.0]
[1744831515410,0.063,129.04,129.03,78.44630305]
[1744831515802,0.063,129.04,129.0,6.1333]
[1744831516114,0.063,129.04,129.02,52.44630305]
[1744831516484,0.063,129.04,129.03,52.44630305]
[1744831516692,0.063,129.04,129.03,130.18673967]
[1744831517103,0.063,129.04,129.03,77.74043662]
[1744831517810,0.063,129.04,129.03,130.18673967]
[1744831518008,0.063,129.1,129.06,26.0]
[1744831518311,0.063,129.1,129.09,52.44630305]
[1744831521209,0.063,129.1,129.06,26.0]
[1744831521409,143.05579823,129.1,129.05,52.44630305]
[1744831521911,143.05579823,129.1,129.07,52.44630305]
[1744831521912,90.60949518,129.1,129.07,52.44630305]
[1744831522095,90.60949518,129.1,128.99,6.5932]
[1744831522096,52.44630305,129.08,128.99,6.5932]
[1744831522295,52.44630305,129.07,129.02,52.44630305]
[1744831522820,52.44630305,129.07,129.03,52.44630305]
[1744831523408,7.74791263,129.07,129.03,52.44630305]
[1744831523703,60.19367578,129.08,129.03,52.44630305]
[1744831524105,82.8,129.09,129.06,52.44630305]
[1744831524313,82.8,129.09,129.07,52.44630305]
[1744831524703,0.063,129.1,129.08,52.44630305]
[1744831526493,0.063,129.1,129.04,26.0]
[1744831526697,0.063,129.1,129.06,52.44630305]
[1744831527813,52.50930305,129.1,129.06,52.44630305]
[1744831528608,0.063,129.1,129.06,52.44630305]
[1744831529300,0.063,129.1,129.04,26.0]
[1744831529502,0.063,129.1,129.06,52.44630305]
[1744831529702,0.063,129.1,129.07,52.44630305]
[1744831530013,82.863,129.1,129.06,52.44630305]
[1744831530212,52.44630305,129.08,129.04,78.44630305]
[1744831530414,52.44630305,129.09,129.04,78.44630305]
[1744831530609,52.44630305,129.09,129.04,52.44630305]
[1744831530809,52.44630305,129.08,129.03,78.44630305]
[1744831531009,82.8,129.07,129.03,78.44630305]
[1744831531206,52.44630305,129.05,128.98,19.78216157]
[1744831531514,82.8,129.07,128.99,52.44630305]
[1744831531515,60.19641989,129.04,128.99,52.44630305]
[1744831531710,52.44630305,129.03,128.98,52.44630305]
[1744831531918,52.44630305,129.02,128.98,52.44630305]
[1744831532308,135.24630305,129.03,128.98,52.44630305]
[1744831532496,82.8,129.03,128.99,52.44630305]
[1744831533299,135.24630305,129.03,128.98,52.44630305]
[1744831533728,142.99699273,129.03,128.98,52.44630305]
[1744831534022,52.44630305,128.99,128.92,6.626]
[1744831534316,52.44630305,129.0,128.95,52.44630305]
[1744831534620,82.8,128.99,128.93,30.0]
[1744831534822,82.8,128.99,128.98,52.44630305]
[1744831535114,82.8,129.01,128.97,52.44630305]
[1744831535330,82.8,129.01,128.96,52.44630305]
[1744831535500,82.8,129.01,128.98,52.44630305]
[1744831535794,82.8,129.01,128.97,78.44630305]
[1744831536197,90.55133968,129.01,128.97,78.44630305]
[1744831536400,52.44630305,128.99,128.92,6.626]
[1744831536611,52.44630305,128.97,128.89,19.67]
[1744831536804,82.8,128.98,128.96,52.44630305]
[1744831537005,82.8,128.98,128.97,52.44630305]
[1744831537198,27.39085292,129.02,128.97,52.44630305]
[1744831537420,27.39085292,129.02,128.98,52.44630305]
[1744831537804,27.39085292,129.02,128.99,52.44630305]
[1744831538229,52.44630305,129.01,128.91,3.98730483]
[1744831538436,27.39085292,129.02,128.96,52.44630305]
[1744831538603,82.8,129.01,128.98,52.44630305]
[1744831538801,19.64,129.02,128.99,52.44630305]
[1744831539126,19.64,129.02,128.98,34.60482679]
[1744831539533,117.40482679,129.03,129.0,34.60482679]
[1744831539534,82.8,129.03,129.0,34.60482679]
[1744831539908,82.8,129.05,129.02,34.60482679]
[1744831540098,261.04754702,129.09,129.04,34.60482679]
[1744831540099,90.54693069,129.09,129.04,34.60482679]
[1744831540297,90.54693069,129.09,129.06,34.60482679]
[1744831540519,34.60482679,129.08,129.03,34.60482679]
[1744831540723,34.60482679,129.08,129.02,34.60482679]
[1744831540724,34.60482679,129.07,129.02,34.60482679]
[1744831540920,34.60482679,129.07,129.03,34.60482679]
[1744831541422,34.60482679,129.06,129.02,34.60482679]
[1744831542016,42.35361258,129.06,129.02,34.60482679]
[1744831542325,34.60482679,129.05,129.01,60.60482679]
[1744831542510,34.60482679,129.04,129.0,34.60482679]
[1744831543026,117.40482679,129.05,129.0,34.60482679]
[1744831543326,7.74953502,129.04,129.0,34.60482679]
[1744831543705,82.8,129.05,129.02,34.60482679]
[1744831543906,82.8,129.05,129.0,26.0]
[1744831543907,82.8,129.05,129.03,34.60482679]
[1744831544120,82.8,129.05,129.04,34.60482679]
[1744831544318,82.8,129.05,129.03,34.60482679]
[1744831544515,82.8,129.05,129.0,26.0]
[1744831544718,82.8,129.05,129.02,34.60482679]
[1744831545822,7.74782549,129.07,129.03,34.60482679]
[1744831546136,117.40482679,129.08,129.03,34.60482679]
[1744831546917,117.40482679,129.08,129.0,60.60482679]
[1744831547120,125.15213575,129.08,129.0,60.60482679]
[1744831547320,125.15213575,129.08,129.03,34.60482679]
[1744831548335,34.60482679,129.05,129.0,26.0]
[1744831548539,34.60482679,129.05,129.01,34.60482679]
[1744831548706,34.60482679,129.06,129.01,34.60482679]
[1744831549332,42.35376131,129.05,129.0,60.60482679]
[1744831549714,34.60482679,129.03,128.96,18.64964886]
[1744831549922,34.60482679,129.02,128.95,24.69564886]
[1744831550112,34.60482679,129.01,128.96,34.60482679]
[1744831550312,34.60482679,129.01,128.97,26.0]
[1744831550646,34.60482679,129.01,128.98,26.0]
[1744831550807,34.60482679,128.99,128.92,36.316]
[1744831551005,117.40482679,129.0,128.95,34.60482679]
[1744831551313,125.15697996,129.0,128.95,34.60482679]
[1744831551517,34.60482679,128.99,128.94,34.60482679]
[1744831551908,34.60482679,128.97,128.93,34.60482679]
[1744831552346,117.40482679,128.98,128.93,34.60482679]
[1744831552506,82.8,128.98,128.93,34.60482679]
[1744831552710,34.60482679,128.97,128.92,90.63482679]
[1744831552926,34.60482679,128.97,128.93,34.60482679]
[1744831553126,42.35882851,128.97,128.93,34.60482679]
[1744831553333,34.60482679,128.96,128.92,0.03]
[1744831554643,82.8,128.98,128.94,34.60482679]
[1744831554811,117.40482679,128.98,128.94,34.60482679]
[1744831555011,125.15810526,128.98,128.93,34.60482679]
[1744831556428,42.35916922,128.96,128.92,0.03]
[1744831557245,42.35879268,128.97,128.93,34.60482679]
[1744831557544,125.15810132,128.98,128.93,34.60482679]
[1744831558046,90.55327453,128.98,128.95,34.60482679]
[1744831558229,117.40482679,128.98,128.93,26.0]
[1744831558427,19.62,129.0,128.93,26.0]
[1744831558428,90.55036963,129.03,128.97,34.60482679]
[1744831558760,90.9744,129.08,129.02,34.60482679]
[1744831558917,108.8,129.09,129.0,34.74698836]
[1744831559114,82.8,129.09,129.01,0.14216157]
[1744831559335,82.8,129.09,129.06,34.60482679]
[1744831559538,0.063,129.1,129.08,34.60482679]
[1744831559834,42.41379421,129.1,129.05,34.60482679]
[1744831560148,42.41379421,129.1,129.06,34.60482679]
[1744831560312,34.60482679,129.09,129.04,34.60482679]
[1744831560626,34.60482679,129.08,129.02,45.64]
[1744831560827,34.60482679,129.09,129.04,34.60482679]
[1744831561133,53.53879879,129.07,129.02,26.0]
[1744831561336,82.8,129.08,129.03,34.60482679]
[1744831561552,82.8,129.08,129.05,34.60482679]
[1744831561720,7.80896742,129.1,129.06,34.60482679]
[1744831562453,0.063,129.1,129.07,34.60482679]
[1744831562616,0.063,129.1,129.09,34.60482679]
[1744831562948,0.063,129.1,129.08,34.60482679]
[1744831563135,0.063,129.1,129.06,34.60482679]
[1744831563318,0.063,129.1,129.07,34.60482679]
[1744831564442,0.063,129.1,129.09,34.60482679]
[1744831564641,0.063,129.1,129.09,26.0]
[1744831564841,0.063,129.1,129.09,60.60482679]
[1744831567254,0.063,129.1,129.06,26.0]
[1744831567445,0.063,129.1,129.08,34.60482679]
[1744831568135,0.063,129.1,129.06,26.0]
[1744831568532,0.063,129.1,129.08,34.60482679]
[1744831569062,0.063,129.1,129.07,34.60482679]
[1744831569858,0.063,129.1,129.06,26.0]
[1744831570033,0.063,129.1,129.06,60.60482679]
[1744831570455,0.063,129.1,129.06,34.60482679]
[1744831571139,0.063,129.1,129.07,34.60482679]
[1744831572040,0.063,129.1,129.04,26.0]
[1744831572265,34.66782679,129.1,129.05,34.60482679]
[1744831572451,42.35185377,129.09,129.04,34.60482679]
[1744831572758,34.60482679,129.06,129.01,34.60482679]
[1744831572965,34.60482679,129.04,128.99,34.60482679]
[1744831573453,34.60482679,129.0,128.95,34.60482679]
[1744831573647,34.60482679,128.99,128.94,34.60482679]
[1744831574035,19.6,129.01,128.95,34.60482679]
[1744831574236,34.60482679,129.0,128.95,34.60482679]
[1744831574552,42.35721207,129.0,128.95,34.60482679]
[1744831575161,34.60482679,128.98,128.92,0.03]
[1744831575451,34.60482679,128.98,128.94,34.60482679]
[1744831575759,34.60482679,128.95,128.92,0.03]
[1744831576144,34.60482679,128.97,128.92,34.63482679]
[1744831576345,34.60482679,128.97,128.96,0.03]
[1744831576549,42.35856797,128.97,128.96,0.03]
[1744831577144,61.43470154,128.97,128.96,0.03]
[1744831577348,18.933972,128.96,128.92,0.03]
[1744831577549,34.60482679,128.94,128.92,0.03]
[1744831577743,34.60482679,128.93,128.92,0.03]
[1744831578157,54.34698836,128.96,128.92,0.03]
[1744831578353,19.6,128.96,128.92,34.63482679]
[1744831578664,34.60482679,128.93,128.92,0.03]
[1744831579560,53.53879879,128.93,128.92,0.03]
[1744831579771,136.48096036,128.93,128.92,0.03]
[1744831580263,162.48096036,128.93,128.92,1e-08]
[1744831580754,87.4371071,128.93,128.92,1e-08]
[1744831581459,0.14216157,128.92,128.85,34.60482679]
[1744831581666,34.60482679,128.87,128.8,1.6482]
[1744831581957,121.353972,128.91,128.84,34.60482679]
[1744831582144,34.60482679,128.88,128.83,26.0]
[1744831582335,34.60482679,128.88,128.84,34.60482679]
[1744831582535,7.75614674,128.93,128.87,34.60482679]
[1744831582851,7.75614674,128.93,128.86,26.0]
[1744831583049,7.75614674,128.93,128.89,34.60482679]
[1744831583347,34.60482679,128.9,128.8,1.6482]
[1744831583538,34.60482679,128.88,128.83,60.60482679]
[1744831584156,34.60482679,128.89,128.84,34.60482679]
[1744831584361,82.8,128.9,128.86,34.60482679]
[1744831584551,117.40482679,128.9,128.85,34.60482679]
[1744831584757,7.7585538,128.89,128.85,34.60482679]
[1744831586143,90.55815642,128.9,128.86,34.60482679]
[1744831586653,125.16298321,128.9,128.85,34.60482679]
[1744831587163,34.60482679,128.87,128.81,26.0]
[1744831587457,34.60482679,128.86,128.82,34.60482679]
[1744831587659,34.60482679,128.87,128.83,34.60482679]
[1744831587961,82.8,128.88,128.84,34.60482679]
[1744831588359,34.60482679,128.85,128.78,6.0908]
[1744831588546,19.62,128.87,128.82,34.60482679]
[1744831588857,7.76096235,128.85,128.81,26.0]
[1744831589261,7.76096235,128.85,128.81,60.60482679]
[1744831589463,42.36578914,128.85,128.81,26.0]
[1744831589665,54.22482679,128.86,128.81,60.60482679]
[1744831589841,19.62,128.88,128.83,34.60482679]
[1744831590170,34.60482679,128.86,128.82,34.60482679]
[1744831590871,42.36558077,128.86,128.82,34.60482679]
[1744831591249,7.75979457,128.87,128.83,34.60482679]
[1744831591451,19.62,128.88,128.85,34.60482679]
[1744831591943,19.62,128.88,128.86,34.60482679]
[1744831592550,19.62,128.88,128.84,34.60482679]
[1744831592751,54.22482679,128.88,128.83,34.60482679]
[1744831592946,7.75975789,128.87,128.83,34.60482679]
[1744831593164,61.98417951,128.88,128.84,34.60482679]
[1744831593563,27.37935272,128.88,128.84,34.60482679]
[1744831593743,27.37935272,128.88,128.85,34.60482679]
[1744831594156,27.37879082,128.89,128.85,34.60482679]
[1744831594346,34.60482679,128.88,128.84,34.60482679]
[1744831594550,61.98361761,128.89,128.84,34.60482679]
[1744831594767,34.60482679,128.87,128.81,26.0]
[1744831594965,34.60482679,128.85,128.81,34.60482679]